fUST/lending_fUST_20240911
["ID","MTS","AMOUNT","RATE_DAILY","PERIOD"]
[337717342,1725987067861,-500.0,0.00017809,2]
[337717343,1725987067871,-1033.55,0.00017809,2]
[337717344,1725987067884,-500.0,0.00017809,2]
[337717345,1725987067893,-1786.34,0.00017809,2]
[337717346,1725987067903,-500.0,0.00017809,2]
[337717347,1725987067913,-3242.368734,0.00017809,2]
[337717348,1725987067924,-500.0,0.00017809,2]
[337717349,1725987067933,-3242.368734,0.00017809,2]
[337717350,1725987067944,-536.885181,0.00017809,2]
[337717351,1725987067955,-857.51,0.00017809,2]
[337717352,1725987067965,-500.0,0.00017809,2]
[337717353,1725987067975,-500.0,0.00017809,2]
[337717354,1725987067985,-536.885181,0.00017809,2]
[337717355,1725987067995,-500.0,0.00017809,2]
[337717356,1725987068005,-500.0,0.00017809,2]
[337717357,1725987068014,-500.0,0.00017809,2]
[337717358,1725987068026,-742.91,0.00017809,2]
[337717359,1725987068038,-151.0,0.00017809,2]
[337717360,1725987068047,-500.0,0.00017809,2]
[337717361,1725987068057,-151.0,0.00017809,2]
[337717362,1725987068066,-606.58,0.00017809,2]
[337717363,1725987068076,-151.0,0.00017809,2]
[337717364,1725987068086,-151.0,0.00017809,2]
[337717365,1725987068095,-151.0,0.00017809,2]
[337717366,1725987068104,-151.0,0.00017809,2]
[337717367,1725987068113,-575.14097043,0.00017809,2]
[337717368,1725987068122,-500.0,0.00017809,2]
[337717369,1725987068132,-679.35,0.00017809,2]
[337717370,1725987068141,-500.0,0.00017809,2]
[337717371,1725987068150,-500.0,0.00017809,2]
[337717372,1725987068160,-500.0,0.00017809,2]
[337717373,1725987068169,-500.0,0.00017809,2]
[337717374,1725987068178,-152.812093,0.0001781,2]
[337717375,1725987068187,-151.0,0.0001781,2]
[337717376,1725987068198,-151.0,0.0001781,2]
[337717377,1725987068207,-151.0,0.0001781,2]
[337717378,1725987068216,-449.849696,0.0001781,2]
[337717379,1725987068226,-449.849696,0.0001781,2]
[337717380,1725987068235,-151.0,0.0001781,2]
[337717381,1725987068244,-151.0,0.0001781,2]
[337717382,1725987068254,-151.0,0.0001781,2]
[337717383,1725987068264,-151.0,0.0001781,2]
[337717384,1725987068273,-151.0,0.0001781,2]
[337717385,1725987068282,-151.0,0.0001781,2]
[337717386,1725987068291,-517.89106859,0.00017811,2]
[337717387,1725987068300,-500.0,0.00017811,2]
[337717388,1725987068310,-153.823599,0.00017811,2]
[337717389,1725987068320,-844.705938,0.00017811,2]
[337717390,1725987068330,-844.705938,0.00017811,2]
[337717391,1725987068339,-151.0,0.00017811,2]
[337717392,1725987068348,-678.54,0.00017812,2]
[337717393,1725987068358,-151.0,0.00017812,2]
[337717394,1725987068367,-151.0,0.00017812,2]
[337717395,1725987068377,-151.0,0.00017812,2]
[337717396,1725987068386,-151.0,0.00017812,2]
[337717397,1725987068396,-151.0,0.00017812,2]
[337717398,1725987068405,-151.0,0.00017812,2]
[337717399,1725987068415,-225.46316,0.00017812,2]
[337717400,1725987068424,-151.0,0.00017812,2]
[337717401,1725987068433,-155.039559,0.00017812,2]
[337717402,1725987068442,-151.0,0.00017812,2]
[337717403,1725987068452,-151.0,0.00017812,2]
[337717404,1725987068462,-500.0,0.00017819,2]
[337717405,1725987068472,-500.0,0.00017819,2]
[337717406,1725987068482,-2206.43598465,0.0001783,2]
[337717407,1725987068492,-500.0,0.00017873,2]
[337717408,1725987068501,-158.67622289,0.00017873,2]
[337717409,1725987068510,-318.5,0.00018,2]
[337717410,1725987068519,-1507.259382,0.00018,2]
[337717411,1725987068529,-1000.0,0.00018,2]
[337717412,1725987068538,-215.567857,0.00018,2]
[337717413,1725987068548,-215.567857,0.00018,2]
[337717414,1725987068558,-151.0,0.00018,2]
[337717415,1725987068567,-151.0,0.00018,2]
[337717416,1725987068577,-1047.18,0.0001808,2]
[337717417,1725987068586,-500.0,0.0001808,2]
[337717418,1725987068595,-500.0,0.00018081,2]
[337717419,1725987068605,-437.66373362,0.00018081,2]
[337717420,1725987068614,-553.54,0.00018081,2]
[337717421,1725987068623,-2363.4,0.00018081,2]
[337717422,1725987068633,-977.86,0.00018081,2]
[337717423,1725987068643,-1813.25,0.00018081,2]
[337717424,1725987068652,-1983.67,0.00018081,2]
[337717425,1725987068662,-585.68,0.00018081,2]
[337717426,1725987068672,-2056.03,0.00018081,2]
[337717427,1725987068681,-1041.82,0.00018081,2]
[337717428,1725987068691,-200.0,0.00018081,2]
[337717429,1725987068700,-500.0,0.00018081,2]
[337717430,1725987068710,-500.0,0.00018081,2]
[337717431,1725987068719,-890.94,0.00018081,2]
[337717432,1725987068729,-500.0,0.00018081,2]
[337717433,1725987068739,-500.0,0.00018081,2]
[337717434,1725987068750,-500.0,0.00018081,2]
[337717435,1725987068760,-500.0,0.00018081,2]
[337717436,1725987068770,-500.0,0.00018081,2]
[337717437,1725987068779,-500.0,0.00018081,2]
[337717438,1725987068788,-2908.31,0.00018081,2]
[337717439,1725987068799,-570.37,0.00018081,2]
[337717440,1725987068809,-43984.4,0.00018081,2]
[337717441,1725987068818,-500.0,0.00018081,2]
[337717442,1725987068829,-2135.99,0.00018081,2]
[337717443,1725987068845,-500.0,0.00018081,2]
[337717444,1725987068854,-3517.34,0.00018081,2]
[337717445,1725987068864,-539.11,0.00018081,2]
[337717446,1725987068874,-2575.2,0.00018081,2]
[337717447,1725987068885,-500.0,0.00018081,2]
[337717448,1725987068894,-7865.92,0.00018081,2]
[337717449,1725987068903,-500.0,0.00018081,2]
[337717450,1725987068914,-500.0,0.00018081,2]
[337717451,1725987068924,-500.0,0.00018081,2]
[337717452,1725987068933,-500.0,0.00018081,2]
[337717453,1725987068943,-3508.18,0.00018081,2]
[337717454,1725987068955,-1299.19,0.00018081,2]
[337717455,1725987068966,-1213.25,0.00018081,2]
[337717456,1725987068976,-500.0,0.00018081,2]
[337717457,1725987068986,-500.0,0.00018081,2]
[337717458,1725987068995,-897.95,0.00018081,2]
[337717459,1725987069006,-2680.58,0.00018081,2]
[337717460,1725987069015,-867.86,0.00018081,2]
[337717461,1725987069024,-500.0,0.00018081,2]
[337717462,1725987069034,-500.0,0.00018081,2]
[337717463,1725987069044,-539.4,0.00018081,2]
[337717464,1725987069053,-3969.43,0.00018081,2]
[337717465,1725987069063,-1187.95,0.00018081,2]
[337717466,1725987069072,-500.0,0.00018081,2]
[337717467,1725987069083,-500.0,0.00018081,2]
[337717468,1725987069093,-500.0,0.00018081,2]
[337717469,1725987069102,-500.0,0.00018081,2]
[337717470,1725987069111,-500.0,0.00018081,2]
[337717471,1725987069121,-500.0,0.00018081,2]
[337717472,1725987069131,-500.0,0.00018081,2]
[337717473,1725987069140,-8904.62,0.00018081,2]
[337717474,1725987069149,-1301.09,0.00018081,2]
[337717475,1725987069159,-500.0,0.00018081,2]
[337717476,1725987069169,-211.51900126,0.00018081,2]
[337717477,1725987069178,-500.0,0.00018081,2]
[337717478,1725987069188,-500.0,0.00018081,2]
[337717479,1725987069198,-1116.76,0.00018081,2]
[337717480,1725987069208,-2535.01,0.00018081,2]
[337717481,1725987069217,-1737.23,0.00018081,2]
[337717482,1725987069227,-500.0,0.00018081,2]
[337717483,1725987069236,-500.0,0.00018081,2]
[337717484,1725987069246,-1452.81,0.00018081,2]
[337717485,1725987069255,-500.0,0.00018081,2]
[337717486,1725987069264,-500.0,0.00018081,2]
[337717487,1725987069273,-500.0,0.00018081,2]
[337717488,1725987069283,-3779.0,0.00018081,2]
[337717489,1725987069292,-500.0,0.00018081,2]
[337717490,1725987069301,-500.0,0.00018081,2]
[337717491,1725987069311,-500.0,0.00018081,2]
[337717492,1725987069320,-565.66,0.00018082,2]
[337717493,1725987069332,-920.25,0.00018082,2]
[337717494,1725987069342,-500.0,0.00018082,2]
[337717495,1725987069351,-500.0,0.00018082,2]
[337717496,1725987069361,-500.0,0.00018082,2]
[337717497,1725987069370,-500.0,0.00018082,2]
[337717498,1725987069379,-1099.81,0.00018082,2]
[337717499,1725987069389,-1604.71,0.00018082,2]
[337717500,1725987069398,-2210.6,0.00018082,2]
[337717501,1725987069407,-500.0,0.00018082,2]
[337717502,1725987069418,-1189.48,0.00018082,2]
[337717503,1725987069428,-500.0,0.00018082,2]
[337717504,1725987069437,-663.24,0.00018082,2]
[337717505,1725987069446,-1038.53,0.00018082,2]
[337717506,1725987069457,-1169.08,0.00018082,2]
[337717507,1725987069468,-2905.25585,0.00018082,2]
[337717508,1725987069477,-505.5,0.00018082,2]
[337717509,1725987069487,-2905.25585,0.00018082,2]
[337717510,1725987069497,-1822.14,0.00018082,2]
[337717511,1725987069506,-151.0,0.00018082,2]
[337717512,1725987069516,-720.07,0.00018082,2]
[337717513,1725987069526,-229.097636,0.00018082,2]
[337717514,1725987069536,-229.097636,0.00018082,2]
[337717515,1725987069546,-151.0,0.00018082,2]
[337717516,1725987069556,-2913.8,0.00018082,2]
[337717517,1725987069565,-1955.94,0.00018082,2]
[337717518,1725987069575,-742.92,0.00018082,2]
[337717519,1725987069587,-500.0,0.00018082,2]
[337717520,1725987069596,-609.62,0.00018082,2]
[337717521,1725987069605,-1713.89,0.00018082,2]
[337717522,1725987069614,-500.0,0.00018082,2]
[337717523,1725987069623,-917.474744,0.00018082,2]
[337717524,1725987069633,-971.86,0.00018082,2]
[337717525,1725987069642,-917.474744,0.00018082,2]
[337717526,1725987069651,-500.0,0.00018082,2]
[337717527,1725987069661,-2284.58,0.00018082,2]
[337717528,1725987069671,-151.0,0.00018082,2]
[337717529,1725987069680,-1021.87,0.00018082,2]
[337717530,1725987069690,-792.09,0.00018082,2]
[337717531,1725987069699,-1816.79,0.00018082,2]
[337717532,1725987069709,-500.0,0.00018082,2]
[337717533,1725987069718,-720.94,0.00018082,2]
[337717534,1725987069728,-753.23,0.00018082,2]
[337717535,1725987069737,-1933.6,0.00018082,2]
[337717536,1725987069746,-1008.22,0.00018082,2]
[337717537,1725987069755,-1583.17,0.00018082,2]
[337717538,1725987069765,-500.0,0.00018082,2]
[337717539,1725987069774,-2583.819816,0.00018082,2]
[337717540,1725987069783,-2583.819816,0.00018082,2]
[337717541,1725987069793,-500.0,0.00018082,2]
[337717542,1725987069802,-500.0,0.00018082,2]
[337717543,1725987069811,-500.0,0.00018082,2]
[337717544,1725987069821,-9481.22,0.00018082,2]
[337717545,1725987069832,-1938.09,0.00018082,2]
[337717546,1725987069841,-1806.64,0.00018082,2]
[337717547,1725987069850,-2379.911523,0.00018082,2]
[337717548,1725987069859,-589.44,0.00018082,2]
[337717549,1725987069869,-2379.911523,0.00018082,2]
[337717550,1725987069883,-500.0,0.00018082,2]
[337717551,1725987069892,-151.0,0.00018082,2]
[337717552,1725987069901,-1240.8,0.00018082,2]
[337717553,1725987069910,-946.63,0.00018082,2]
[337717554,1725987069920,-38864.62,0.00018082,2]
[337717555,1725987069929,-500.0,0.00018082,2]
[337717556,1725987069939,-2013.95,0.00018082,2]
[337717557,1725987069949,-2044.37,0.00018082,2]
[337717558,1725987069960,-151.0,0.00018082,2]
[337717559,1725987069969,-5334.834784,0.00018082,2]
[337717560,1725987069979,-500.0,0.00018082,2]
[337717561,1725987069988,-53987.64,0.00018082,2]
[337717562,1725987069997,-5334.834784,0.00018082,2]
[337717563,1725987070006,-500.0,0.00018082,2]
[337717564,1725987070016,-500.0,0.00018082,2]
[337717565,1725987070027,-4713.36,0.00018082,2]
[337717566,1725987070036,-535.49,0.00018082,2]
[337717567,1725987070047,-500.0,0.00018082,2]
[337717568,1725987070056,-3242.368734,0.00018082,2]
[337717569,1725987070066,-965.38,0.00018082,2]
[337717570,1725987070075,-531.37991663,0.00018082,2]
[337717571,1725987070085,-3242.368734,0.00018082,2]
[337717572,1725987070094,-500.0,0.00018082,2]
[337717573,1725987070103,-806.04,0.00018082,2]
[337717574,1725987070113,-500.0,0.00018082,2]
[337717575,1725987070122,-500.0,0.00018082,2]
[337717576,1725987070132,-536.885181,0.00018082,2]
[337717577,1725987070141,-500.0,0.00018082,2]
[337717578,1725987070151,-500.0,0.00018082,2]
[337717579,1725987070160,-2582.53,0.00018082,2]
[337717580,1725987070170,-536.885181,0.00018082,2]
[337717581,1725987070179,-677.86,0.00018082,2]
[337717582,1725987070189,-500.0,0.00018082,2]
[337717583,1725987070198,-500.0,0.00018082,2]
[337717584,1725987070207,-771.86,0.00018082,2]
[337717585,1725987070216,-500.0,0.00018082,2]
[337717586,1725987070226,-500.0,0.00018082,2]
[337717587,1725987070236,-1718.58,0.00018082,2]
[337717588,1725987070245,-1132.77,0.00018082,2]
[337717589,1725987070254,-500.0,0.00018082,2]
[337717590,1725987070264,-2709.96,0.00018082,2]
[337717591,1725987070273,-151.0,0.00018082,2]
[337717592,1725987070283,-652.93,0.00018082,2]
[337717593,1725987070292,-151.0,0.00018082,2]
[337717594,1725987070302,-500.0,0.00018082,2]
[337717595,1725987070311,-151.0,0.00018082,2]
[337717596,1725987070320,-151.0,0.00018082,2]
[337717597,1725987070330,-5158.88,0.00018082,2]
[337717598,1725987070339,-151.0,0.00018082,2]
[337717599,1725987070349,-151.0,0.00018082,2]
[337717600,1725987070358,-500.0,0.00018082,2]
[337717601,1725987070367,-500.0,0.00018082,2]
[337717602,1725987070377,-500.0,0.00018082,2]
[337717603,1725987070386,-500.0,0.00018082,2]
[337717604,1725987070396,-972.48,0.00018082,2]
[337717605,1725987070523,-1065.08,0.00018083,2]
[337717606,1725987070539,-500.0,0.00018083,2]
[337717607,1725987070548,-660.04,0.00018083,2]
[337717608,1725987070558,-500.0,0.00018083,2]
[337717609,1725987070567,-500.0,0.00018083,2]
[337717610,1725987070576,-500.0,0.00018083,2]
[337717611,1725987070586,-1568.6,0.00018083,2]
[337717612,1725987070595,-792.17,0.00018083,2]
[337717613,1725987070604,-500.0,0.00018083,2]
[337717614,1725987070613,-599.4741924,0.00018083,2]
[337717615,1725987070622,-904.46,0.00018083,2]
[337717616,1725987070631,-500.0,0.00018083,2]
[337717617,1725987070640,-625.22,0.00018083,2]
[337717618,1725987070649,-536.45,0.00018083,2]
[337717619,1725987070658,-500.0,0.00018083,2]
[337717620,1725987070668,-500.0,0.00018083,2]
[337717621,1725987070678,-152.94369035,0.00018083,2]
[337717622,1725987070688,-502.6,0.00018083,2]
[337717623,1725987070699,-500.0,0.00018083,2]
[337717624,1725987070710,-1049.86,0.00018083,2]
[337717625,1725987070719,-1076.1,0.00018083,2]
[337717626,1725987070729,-500.0,0.00018083,2]
[337717627,1725987070738,-500.0,0.00018083,2]
[337717628,1725987070749,-500.0,0.00018083,2]
[337717629,1725987070759,-500.0,0.00018083,2]
[337717630,1725987070768,-500.0,0.00018083,2]
[337717631,1725987070777,-500.0,0.00018083,2]
[337717632,1725987070787,-500.0,0.00018083,2]
[337717633,1725987070796,-500.0,0.00018083,2]
[337717634,1725987070806,-629.08,0.00018083,2]
[337717635,1725987070815,-500.0,0.00018083,2]
[337717636,1725987070823,-712.42,0.00018083,2]
[337717637,1725987070833,-500.0,0.00018083,2]
[337717638,1725987070842,-500.0,0.00018083,2]
[337717639,1725987070851,-628.00000002,0.00018083,2]
[337717640,1725987070860,-500.0,0.00018083,2]
[337717641,1725987070869,-500.0,0.00018083,2]
[337717642,1725987070883,-348.5686637,0.00018083,2]
[337717643,1725987070892,-500.0,0.00018083,2]
[337717644,1725987070903,-500.0,0.00018083,2]
[337717645,1725987070912,-500.0,0.00018083,2]
[337717646,1725987070923,-500.0,0.00018083,2]
[337717647,1725987070931,-500.0,0.00018083,2]
[337717648,1725987070942,-852.74,0.00018083,2]
[337717649,1725987070951,-500.0,0.00018083,2]
[337717650,1725987070962,-500.0,0.00018083,2]
[337717651,1725987070972,-500.0,0.00018083,2]
[337717652,1725987070981,-800.96,0.00018083,2]
[337717653,1725987070991,-649.67,0.00018083,2]
[337717654,1725987071002,-500.0,0.00018083,2]
[337717655,1725987071012,-500.0,0.00018083,2]
[337717656,1725987071024,-588.79,0.00018083,2]
[337717657,1725987071035,-500.0,0.00018083,2]
[337717658,1725987071046,-1531.75,0.00018083,2]
[337717659,1725987071057,-500.0,0.00018083,2]
[337717660,1725987071067,-677.0,0.00018083,2]
[337717661,1725987071076,-500.0,0.00018083,2]
[337717662,1725987071087,-582.35,0.00018083,2]
[337717663,1725987071097,-1661.25,0.00018083,2]
[337717664,1725987071108,-500.0,0.00018083,2]
[337717665,1725987071119,-500.0,0.00018083,2]
[337717666,1725987071129,-500.0,0.00018083,2]
[337717667,1725987071138,-902.12,0.00018083,2]
[337717668,1725987071149,-500.0,0.00018083,2]
[337717669,1725987071160,-160.458551,0.00018083,2]
[337717670,1725987071170,-1161.67,0.00018083,2]
[337717671,1725987071182,-151.0,0.00018083,2]
[337717672,1725987071194,-1545.8,0.00018083,2]
[337717673,1725987071204,-500.0,0.00018083,2]
[337717674,1725987071215,-1031.96,0.00018083,2]
[337717675,1725987071225,-449.849696,0.00018083,2]
[337717676,1725987071235,-500.0,0.00018083,2]
[337717677,1725987071245,-1005.54,0.00018083,2]
[337717678,1725987071256,-449.849696,0.00018083,2]
[337717679,1725987071266,-801.25,0.00018083,2]
[337717680,1725987071275,-682.45,0.00018083,2]
[337717681,1725987071284,-1528.95,0.00018083,2]
[337717682,1725987071293,-686.42,0.00018083,2]
[337717683,1725987071303,-500.0,0.00018083,2]
[337717684,1725987071312,-500.0,0.00018083,2]
[337717685,1725987071321,-3196.6,0.00018083,2]
[337717686,1725987071332,-1720.38,0.00018083,2]
[337717687,1725987071341,-580.2,0.00018083,2]
[337717688,1725987071350,-500.0,0.00018083,2]
[337717689,1725987071360,-151.0,0.00018083,2]
[337717690,1725987071369,-151.0,0.00018083,2]
[337717691,1725987071379,-2053.93,0.00018083,2]
[337717692,1725987071387,-500.0,0.00018083,2]
[337717693,1725987071397,-151.0,0.00018083,2]
[337717694,1725987071407,-500.0,0.00018083,2]
[337717695,1725987071416,-1653.22,0.00018083,2]
[337717696,1725987071425,-2581.4,0.00018083,2]
[337717697,1725987071434,-151.0,0.00018083,2]
[337717698,1725987071443,-500.0,0.00018083,2]
[337717699,1725987071452,-151.0,0.00018083,2]
[337717700,1725987071462,-500.0,0.00018083,2]
[337717701,1725987071471,-500.0,0.00018083,2]
[337717702,1725987071480,-245.38923,0.00018083,2]
[337717703,1725987071489,-582.87,0.00018083,2]
[337717704,1725987071498,-665.52,0.00018083,2]
[337717705,1725987071507,-500.0,0.00018083,2]
[337717706,1725987071517,-500.0,0.00018083,2]
[337717707,1725987071528,-624.21,0.00018083,2]
[337717708,1725987071539,-796.18,0.00018083,2]
[337717709,1725987071548,-500.0,0.00018083,2]
[337717710,1725987071557,-500.0,0.00018083,2]
[337717711,1725987071566,-1602.56,0.00018083,2]
[337717712,1725987071576,-1153.39,0.00018083,2]
[337717713,1725987071586,-979.44,0.00018083,2]
[337717714,1725987071595,-629.96,0.00018083,2]
[337717715,1725987071605,-931.29,0.00018083,2]
[337717716,1725987071614,-500.0,0.00018083,2]
[337717717,1725987071623,-500.0,0.00018083,2]
[337717718,1725987071632,-516.8,0.00018083,2]
[337717719,1725987071641,-1387.23,0.00018083,2]
[337717720,1725987071651,-1249.15,0.00018083,2]
[337717721,1725987071660,-500.0,0.00018083,2]
[337717722,1725987071669,-500.0,0.00018083,2]
[337717723,1725987071678,-507.63,0.00018083,2]
[337717724,1725987071688,-3108.36,0.00018083,2]
[337717725,1725987071698,-1950.86,0.00018083,2]
[337717726,1725987071707,-513.58,0.00018083,2]
[337717727,1725987071717,-500.0,0.00018083,2]
[337717728,1725987071727,-1468.78,0.00018083,2]
[337717729,1725987071736,-4251.41,0.00018083,2]
[337717730,1725987071745,-500.0,0.00018083,2]
[337717731,1725987071754,-151.0,0.00018083,2]
[337717732,1725987071764,-500.0,0.00018083,2]
[337717733,1725987071773,-500.0,0.00018083,2]
[337717734,1725987071783,-311.7877352,0.00018083,2]
[337717735,1725987071792,-500.0,0.00018083,2]
[337717736,1725987071802,-500.0,0.00018083,2]
[337717737,1725987071811,-818.77,0.00018083,2]
[337717738,1725987071820,-500.0,0.00018083,2]
[337717739,1725987071829,-500.0,0.00018083,2]
[337717740,1725987071838,-500.0,0.00018083,2]
[337717741,1725987071850,-547.21,0.00018083,2]
[337717742,1725987071859,-889.36,0.00018083,2]
[337717743,1725987071868,-500.0,0.00018083,2]
[337717744,1725987071880,-948.67,0.00018083,2]
[337717745,1725987071889,-653.85,0.00018083,2]
[337717746,1725987071899,-443.44814962,0.00018083,2]
[337717747,1725987071909,-527.0,0.00018083,2]
[337717748,1725987071920,-1596.56,0.00018083,2]
[337717749,1725987071930,-626.02,0.00018083,2]
[337717750,1725987071942,-510.81953818,0.00018083,2]
[337717751,1725987071951,-500.0,0.00018083,2]
[337717752,1725987071961,-500.0,0.00018083,2]
[337717753,1725987071971,-553.2,0.00018083,2]
[337717754,1725987071980,-848.19,0.00018083,2]
[337717755,1725987071990,-500.0,0.00018083,2]
[337717756,1725987072000,-322.31810802,0.00018083,2]
[337717757,1725987072010,-882.16,0.00018083,2]
[337717758,1725987072019,-500.0,0.00018083,2]
[337717759,1725987072028,-578.17,0.00018083,2]
[337717760,1725987072038,-500.0,0.00018083,2]
[337717761,1725987072047,-500.0,0.00018083,2]
[337717762,1725987072056,-500.0,0.00018083,2]
[337717763,1725987072065,-841.44,0.00018083,2]
[337717764,1725987072074,-500.0,0.00018083,2]
[337717765,1725987072084,-642.34,0.00018083,2]
[337717766,1725987072094,-791.11,0.00018083,2]
[337717767,1725987072104,-500.0,0.00018083,2]
[337717768,1725987072114,-500.0,0.00018083,2]
[337717769,1725987072123,-500.0,0.00018083,2]
[337717770,1725987072132,-1895.41,0.00018083,2]
[337717771,1725987072141,-500.0,0.00018083,2]
[337717772,1725987072151,-980.57,0.00018083,2]
[337717773,1725987072160,-500.0,0.00018083,2]
[337717774,1725987072170,-2400.44,0.00018083,2]
[337717775,1725987072181,-151.0,0.00018083,2]
[337717776,1725987072192,-500.0,0.00018083,2]
[337717777,1725987072201,-500.0,0.00018083,2]
[337717778,1725987072212,-1124.28,0.00018083,2]
[337717779,1725987072224,-672.56,0.00018083,2]
[337717780,1725987072235,-571.17,0.00018083,2]
[337717781,1725987072245,-500.0,0.00018083,2]
[337717782,1725987072255,-808.61,0.00018083,2]
[337717783,1725987072265,-500.0,0.00018083,2]
[337717784,1725987072275,-500.0,0.00018083,2]
[337717785,1725987072284,-1199.35,0.00018083,2]
[337717786,1725987072294,-5334.834784,0.00018083,2]
[337717787,1725987072304,-500.0,0.00018083,2]
[337717788,1725987072313,-5334.834784,0.00018083,2]
[337717789,1725987072322,-500.0,0.00018083,2]
[337717790,1725987072332,-1033.55,0.00018083,2]
[337717791,1725987072341,-500.0,0.00018083,2]
[337717792,1725987072350,-1786.34,0.00018083,2]
[337717793,1725987072360,-500.0,0.00018083,2]
[337717794,1725987072368,-3242.368734,0.00018083,2]
[337717795,1725987072378,-460.80691569,0.00018083,2]
[337717796,1725987072387,-3242.368734,0.00018083,2]
[337717797,1725987072396,-215.567857,0.00018083,2]
[337717798,1725987072406,-215.567857,0.00018083,2]
[337717799,1725987072415,-536.885181,0.00018083,2]
[337717800,1725987072424,-857.51,0.00018083,2]
[337717801,1725987072434,-500.0,0.00018083,2]
[337717802,1725987072443,-151.0,0.00018083,2]
[337717803,1725987072452,-500.0,0.00018083,2]
[337717804,1725987072462,-536.885181,0.00018083,2]
[337717805,1725987072471,-500.0,0.00018083,2]
[337717806,1725987072480,-500.0,0.00018083,2]
[337717807,1725987072490,-500.0,0.00018083,2]
[337717808,1725987072499,-742.91,0.00018083,2]
[337717809,1725987072509,-151.0,0.00018083,2]
[337717810,1725987072519,-516.35260562,0.00018083,2]
[337717811,1725987072529,-606.58,0.00018083,2]
[337717812,1725987072538,-500.0,0.00018083,2]
[337717813,1725987072547,-679.35,0.00018083,2]
[337717814,1725987072557,-500.0,0.00018083,2]
[337717815,1725987072566,-500.0,0.00018083,2]
[337717816,1725987072575,-500.0,0.00018083,2]
[337717817,1725987072585,-263.70943947,0.00018083,2]
[337717818,1725987072594,-151.0,0.00018084,2]
[337717819,1725987072605,-151.0,0.00018084,2]
[337717820,1725987072614,-151.0,0.00018084,2]
[337717821,1725987072623,-151.0,0.00018084,2]
[337717822,1725987072632,-151.303756,0.00018084,2]
[337717823,1725987072642,-151.0,0.00018084,2]
[337717824,1725987072650,-844.705938,0.00018084,2]
[337717825,1725987072660,-844.705938,0.00018084,2]
[337717826,1725987072669,-151.0,0.00018084,2]
[337717827,1725987072679,-151.0,0.00018084,2]
[337717828,1725987072690,-500.0,0.00018085,2]
[337717829,1725987072703,-2905.25585,0.00018085,2]
[337717830,1725987072712,-2905.25585,0.00018085,2]
[337717831,1725987072721,-151.0,0.00018085,2]
[337717832,1725987072732,-229.097636,0.00018085,2]
[337717833,1725987072742,-229.097636,0.00018085,2]
[337717834,1725987072752,-152.08825,0.00018085,2]
[337717835,1725987072761,-678.54,0.00018086,2]
[337717836,1725987072770,-917.474744,0.00018086,2]
[337717837,1725987072780,-917.474744,0.00018086,2]
[337717838,1725987072790,-151.0,0.00018086,2]
[337717839,1725987072799,-2583.819816,0.00018086,2]
[337717840,1725987072809,-2583.819816,0.00018086,2]
[337717841,1725987072818,-2379.911523,0.00018086,2]